[Event "Titled Tuesday Blitz August 15 Early 2023"]
[White "Korpics, Zsolt"]
[Black "TimGrutter03"]
[WhiteFideId "705241"]
[WhiteElo "2374"]
[BlackElo "2571"]
[Result "0-1"]
[Round "3"]
[TimeControl "180+1"]
[Date "2023.08.15"]
[WhiteClock "0:00:14"]
[BlackClock "0:00:05"]
[Board "134"]

1. e4 {[%clk 0:03:00]}  d6 {[%clk 0:02:57]} 2. d4 {[%clk 0:03:00]}  Nf6 {[%clk 0:02:55]} 3. Nc3 {[%clk 0:03:00]}  e5 {[%clk 0:02:54]} 4. Nf3 {[%clk 0:02:57]}  Nbd7 {[%clk 0:02:49]} 5. g4 {[%clk 0:02:50]}  Nxg4 {[%clk 0:02:47]} 6. Rg1 {[%clk 0:02:50]}  Ngf6 {[%clk 0:02:46]} 7. Bc4 {[%clk 0:02:50]}  h6 {[%clk 0:02:45]} 8. dxe5 {[%clk 0:02:45]}  dxe5 {[%clk 0:02:40]} 9. Be3 {[%clk 0:02:29]}  g6 {[%clk 0:02:23]} 10. Qd2 {[%clk 0:02:25]}  Be7 {[%clk 0:02:14]} 11. Bxh6 {[%clk 0:01:59]}  Nb6 {[%clk 0:02:08]} 12. Bb3 {[%clk 0:01:02]}  Qxd2+ {[%clk 0:02:06]} 13. Bxd2 {[%clk 0:01:03]}  Bd6 {[%clk 0:01:52]} 14. Ng5 {[%clk 0:01:03]}  Rf8 {[%clk 0:01:27]} 15. Nb5 {[%clk 0:01:00]}  Ke7 {[%clk 0:01:14]} 16. O-O-O {[%clk 0:00:44]}  a5 {[%clk 0:01:02]} 17. Be3 {[%clk 0:00:38]}  Nbd7 {[%clk 0:00:48]} 18. Rd2 {[%clk 0:00:25]}  a4 {[%clk 0:00:46]} 19. Bc4 {[%clk 0:00:23]}  a3 {[%clk 0:00:36]} 20. Rgd1 {[%clk 0:00:22]}  axb2+ {[%clk 0:00:35]} 21. Kxb2 {[%clk 0:00:22]}  Nc5 {[%clk 0:00:21]} 22. Nxd6 {[%clk 0:00:16]}  cxd6 {[%clk 0:00:20]} 23. Rxd6 {[%clk 0:00:15]}  Nfxe4 {[%clk 0:00:17]} 24. Nxe4 {[%clk 0:00:13]}  Nxe4 {[%clk 0:00:17]} 25. Rb6 {[%clk 0:00:11]}  Rd8 {[%clk 0:00:14]} 26. Bd3 {[%clk 0:00:10]}  Nd6 {[%clk 0:00:09]} 27. Bc5 {[%clk 0:00:08]}  Ke6 {[%clk 0:00:08]} 28. Bxd6 {[%clk 0:00:08]}  Rxd6 {[%clk 0:00:09]} 29. Bc4+ {[%clk 0:00:08]}  Ke7 {[%clk 0:00:08]} 30. Rbxd6 {[%clk 0:00:09]}  Ra4 {[%clk 0:00:08]} 31. Bb3 {[%clk 0:00:09]}  Rf4 {[%clk 0:00:08]} 32. Rd8 {[%clk 0:00:09]}  Bf5 {[%clk 0:00:08]} 33. R8d2 {[%clk 0:00:09]}  Rh4 {[%clk 0:00:08]} 34. Re1 {[%clk 0:00:09]}  Kf6 {[%clk 0:00:08]} 35. f3 {[%clk 0:00:09]}  Rf4 {[%clk 0:00:08]} 36. Rf2 {[%clk 0:00:10]}  g5 {[%clk 0:00:08]} 37. Ref1 {[%clk 0:00:10]}  Bh3 {[%clk 0:00:08]} 38. Rg1 {[%clk 0:00:10]}  g4 {[%clk 0:00:08]} 39. Rg3 {[%clk 0:00:10]}  e4 {[%clk 0:00:08]} 40. Bd5 {[%clk 0:00:08]}  e3 {[%clk 0:00:04]} 41. Re2 {[%clk 0:00:07]}  Ke5 {[%clk 0:00:03]} 42. Bxb7 {[%clk 0:00:07]}  Kd4 {[%clk 0:00:03]} 43. fxg4 {[%clk 0:00:05]}  Rf6 {[%clk 0:00:02]} 44. Rexe3 {[%clk 0:00:05]}  Rb6+ {[%clk 0:00:02]} 45. Rb3 {[%clk 0:00:06]}  Rh6 {[%clk 0:00:03]} 46. Rgd3+ {[%clk 0:00:06]}  Ke5 {[%clk 0:00:03]} 47. Rb5+ {[%clk 0:00:07]}  Kf4 {[%clk 0:00:03]} 48. Rd4+ {[%clk 0:00:07]}  Ke3 {[%clk 0:00:03]} 49. Re4+ {[%clk 0:00:07]}  Kf2 {[%clk 0:00:03]} 50. Rb3 {[%clk 0:00:08]}  Bg2 {[%clk 0:00:03]} 51. Rf4+ {[%clk 0:00:08]}  Kg1 {[%clk 0:00:03]} 52. Re3 {[%clk 0:00:08]}  Rb6+ {[%clk 0:00:04]} 53. Kc3 {[%clk 0:00:07]}  Rxb7 {[%clk 0:00:03]} 54. Re1+ {[%clk 0:00:07]}  Kxh2 {[%clk 0:00:04]} 55. Rf2 {[%clk 0:00:07]}  Rc7+ {[%clk 0:00:04]} 56. Kb2 {[%clk 0:00:06]}  Kg3 {[%clk 0:00:05]} 57. Ree2 {[%clk 0:00:06]}  Bf3 {[%clk 0:00:04]} 58. Rd2 {[%clk 0:00:06]}  Kxg4 {[%clk 0:00:05]} 59. Rf1 {[%clk 0:00:06]}  f5 {[%clk 0:00:04]} 60. a4 {[%clk 0:00:04]}  Be4 {[%clk 0:00:04]} 61. Ka3 {[%clk 0:00:04]}  Rc3+ {[%clk 0:00:02]} 62. Kb4 {[%clk 0:00:04]}  Rc8 {[%clk 0:00:03]} 63. a5 {[%clk 0:00:04]}  Rb8+ {[%clk 0:00:04]} 64. Ka4 {[%clk 0:00:05]}  Bc6+ {[%clk 0:00:03]} 65. Ka3 {[%clk 0:00:05]}  Rb5 {[%clk 0:00:03]} 66. Rd4+ {[%clk 0:00:05]}  Kg3 {[%clk 0:00:03]} 67. Ra4 {[%clk 0:00:05]}  Rc5 {[%clk 0:00:03]} 68. Rg4+ {[%clk 0:00:04]}  fxg4 {[%clk 0:00:03]} 69. Kb4 {[%clk 0:00:05]}  Rxc2 {[%clk 0:00:03]} 70. a6 {[%clk 0:00:05]}  Ra2 {[%clk 0:00:03]} 71. Kc5 {[%clk 0:00:05]}  Rxa6 {[%clk 0:00:03]} 72. Rf6 {[%clk 0:00:05]}  Kh2 {[%clk 0:00:03]} 73. Rh6+ {[%clk 0:00:04]}  Kg2 {[%clk 0:00:03]} 74. Kd4 {[%clk 0:00:05]}  g3 {[%clk 0:00:04]} 75. Rg6 {[%clk 0:00:05]}  Kf2 {[%clk 0:00:04]} 76. Kc3 {[%clk 0:00:05]}  g2 {[%clk 0:00:04]} 77. Kc4 {[%clk 0:00:04]}  g1=Q {[%clk 0:00:04]} 78. Rxg1 {[%clk 0:00:03]}  Kxg1 {[%clk 0:00:05]} 79. Kc5 {[%clk 0:00:04]}  Kf2 {[%clk 0:00:05]} 80. Kb4 {[%clk 0:00:04]}  Be4 {[%clk 0:00:05]} 81. Kc5 {[%clk 0:00:05]}  Rf6 {[%clk 0:00:05]} 82. Kd4 {[%clk 0:00:06]}  Bf3 {[%clk 0:00:06]} 83. Ke5 {[%clk 0:00:07]}  Ra6 {[%clk 0:00:06]} 84. Kd4 {[%clk 0:00:07]}  Ra4+ {[%clk 0:00:07]} 85. Kc5 {[%clk 0:00:08]}  Rg4 {[%clk 0:00:07]} 86. Kd6 {[%clk 0:00:07]}  Ke3 {[%clk 0:00:07]} 87. Ke5 {[%clk 0:00:08]}  Be4 {[%clk 0:00:07]} 88. Kf6 {[%clk 0:00:08]}  Kf4 {[%clk 0:00:07]} 89. Ke6 {[%clk 0:00:09]}  Rg6+ {[%clk 0:00:07]} 90. Ke7 {[%clk 0:00:09]}  Ke5 {[%clk 0:00:07]} 91. Kf7 {[%clk 0:00:10]}  Ra6 {[%clk 0:00:07]} 92. Kg7 {[%clk 0:00:11]}  Kf5 {[%clk 0:00:07]} 93. Kh7 {[%clk 0:00:11]}  Kg5+ {[%clk 0:00:07]} 94. Kg7 {[%clk 0:00:12]}  Ra7+ {[%clk 0:00:07]} 95. Kg8 {[%clk 0:00:13]}  Kf6 {[%clk 0:00:06]} 96. Kh8 {[%clk 0:00:13]}  Kg6 {[%clk 0:00:06]} 97. Kg8 {[%clk 0:00:14]}  Ra8# {[%clk 0:00:05]} 0-1


[Site "https://www.chess.com"]

[Event "Titled Tuesday Blitz August 15 Early 2023"]
[White "FlemingA"]
[Black "Roebers, Eline"]
[BlackFideId "1058401"]
[WhiteElo "2361"]
[BlackElo "2569"]
[Result "1-0"]
[Round "3"]
[TimeControl "180+1"]
[Date "2023.08.15"]
[WhiteClock "0:01:04"]
[BlackClock "0:01:11"]
[Board "135"]

1. Nc3 {[%clk 0:03:00]}  f5 {[%clk 0:02:56]} 2. d4 {[%clk 0:02:55]}  Nf6 {[%clk 0:02:54]} 3. h3 {[%clk 0:02:56]}  d5 {[%clk 0:02:53]} 4. Bf4 {[%clk 0:02:51]}  c5 {[%clk 0:02:52]} 5. e3 {[%clk 0:02:52]}  Nc6 {[%clk 0:02:48]} 6. Nf3 {[%clk 0:02:51]}  a6 {[%clk 0:02:45]} 7. Ne5 {[%clk 0:02:45]}  Qb6 {[%clk 0:02:40]} 8. Nxc6 {[%clk 0:02:38]}  bxc6 {[%clk 0:02:36]} 9. Rb1 {[%clk 0:02:19]}  e6 {[%clk 0:02:28]} 10. Be2 {[%clk 0:02:11]}  cxd4 {[%clk 0:02:18]} 11. exd4 {[%clk 0:02:10]}  c5 {[%clk 0:02:19]} 12. dxc5 {[%clk 0:02:07]}  Bxc5 {[%clk 0:02:18]} 13. O-O {[%clk 0:02:05]}  Bd6 {[%clk 0:02:12]} 14. Na4 {[%clk 0:01:45]}  Qc7 {[%clk 0:02:08]} 15. Bxd6 {[%clk 0:01:43]}  Qxd6 {[%clk 0:02:09]} 16. c4 {[%clk 0:01:44]}  d4 {[%clk 0:01:59]} 17. c5 {[%clk 0:01:40]}  Qc6 {[%clk 0:01:57]} 18. Bf3 {[%clk 0:01:25]}  Ne4 {[%clk 0:01:51]} 19. Qxd4 {[%clk 0:01:22]}  Bb7 {[%clk 0:01:49]} 20. Nb6 {[%clk 0:01:13]}  Rd8 {[%clk 0:01:11]} 21. Qxg7 {[%clk 0:01:04]} 1-0


[Site "https://www.chess.com"]

[Event "Titled Tuesday Blitz August 15 Early 2023"]
[White "Keleberda, Tymur"]
[Black "Vasques, Antonio Pedro Freixial"]
[WhiteFideId "14174294"]
[BlackFideId "1908332"]
[WhiteElo "2568"]
[BlackElo "2350"]
[Result "0-1"]
[Round "3"]
[TimeControl "180+1"]
[Date "2023.08.15"]
[WhiteClock "0:00:48"]
[BlackClock "0:01:36"]
[Board "136"]

1. e4 {[%clk 0:03:00]}  c5 {[%clk 0:03:00]} 2. Nf3 {[%clk 0:03:01]}  d6 {[%clk 0:02:59]} 3. c3 {[%clk 0:03:00]}  Nf6 {[%clk 0:02:59]} 4. h3 {[%clk 0:03:00]}  Nc6 {[%clk 0:02:58]} 5. Bd3 {[%clk 0:03:00]}  g5 {[%clk 0:02:47]} 6. O-O {[%clk 0:02:36]}  g4 {[%clk 0:02:36]} 7. hxg4 {[%clk 0:02:36]}  Bxg4 {[%clk 0:02:37]} 8. Bc2 {[%clk 0:02:35]}  Ne5 {[%clk 0:02:32]} 9. d4 {[%clk 0:02:26]}  Nxf3+ {[%clk 0:02:30]} 10. gxf3 {[%clk 0:02:26]}  Bh3 {[%clk 0:02:31]} 11. Ba4+ {[%clk 0:02:23]}  Nd7 {[%clk 0:02:25]} 12. Re1 {[%clk 0:02:23]}  e6 {[%clk 0:02:20]} 13. Bxd7+ {[%clk 0:02:03]}  Kxd7 {[%clk 0:02:20]} 14. Qa4+ {[%clk 0:01:09]}  Kc7 {[%clk 0:02:02]} 15. Bf4 {[%clk 0:01:02]}  Rg8+ {[%clk 0:01:57]} 16. Bg3 {[%clk 0:01:01]}  Qh4 {[%clk 0:01:42]} 17. Kh2 {[%clk 0:00:53]}  Qh5 {[%clk 0:01:41]} 18. Rh1 {[%clk 0:00:49]}  Qxf3 {[%clk 0:01:36]} 19. Kxh3 {[%clk 0:00:48]}  Qxh1+ {[%clk 0:01:35]} 20. Bh2 {[%clk 0:00:47]}  Qg2+ {[%clk 0:01:35]} 21. Kh4 {[%clk 0:00:48]}  Qg4# {[%clk 0:01:36]} 0-1


[Site "https://www.chess.com"]

[Event "Titled Tuesday Blitz August 15 Early 2023"]
[White "Saito, Vinicius"]
[Black "Trifan, Andrei Ioan"]
[WhiteFideId "2113384"]
[BlackFideId "12967068"]
[WhiteElo "2349"]
[BlackElo "2567"]
[Result "0-1"]
[Round "3"]
[TimeControl "180+1"]
[Date "2023.08.15"]
[WhiteClock "0:00:31"]
[BlackClock "0:01:09"]
[Board "137"]

1. e4 {[%clk 0:03:00]}  d6 {[%clk 0:02:56]} 2. d4 {[%clk 0:03:00]}  Nf6 {[%clk 0:02:56]} 3. Nc3 {[%clk 0:03:00]}  g6 {[%clk 0:02:56]} 4. Nf3 {[%clk 0:03:00]}  Bg7 {[%clk 0:02:53]} 5. Be2 {[%clk 0:03:00]}  O-O {[%clk 0:02:52]} 6. O-O {[%clk 0:03:00]}  c6 {[%clk 0:02:49]} 7. a4 {[%clk 0:02:59]}  a5 {[%clk 0:02:49]} 8. h3 {[%clk 0:02:58]}  Qc7 {[%clk 0:02:46]} 9. Be3 {[%clk 0:02:58]}  Nbd7 {[%clk 0:02:44]} 10. Qd2 {[%clk 0:02:58]}  e5 {[%clk 0:02:43]} 11. Bh6 {[%clk 0:02:46]}  exd4 {[%clk 0:02:38]} 12. Nxd4 {[%clk 0:02:46]}  Nc5 {[%clk 0:02:38]} 13. Bxg7 {[%clk 0:02:41]}  Kxg7 {[%clk 0:02:35]} 14. Bf3 {[%clk 0:02:30]}  Re8 {[%clk 0:02:35]} 15. Rfe1 {[%clk 0:02:29]}  Bd7 {[%clk 0:02:26]} 16. Rad1 {[%clk 0:02:29]}  Rad8 {[%clk 0:02:26]} 17. Qf4 {[%clk 0:02:28]}  Bc8 {[%clk 0:02:21]} 18. h4 {[%clk 0:02:16]}  Re5 {[%clk 0:02:11]} 19. g3 {[%clk 0:02:00]}  Qe7 {[%clk 0:02:08]} 20. Re2 {[%clk 0:01:45]}  Re8 {[%clk 0:02:04]} 21. Rde1 {[%clk 0:01:44]}  h5 {[%clk 0:01:59]} 22. Bg2 {[%clk 0:01:36]}  Bg4 {[%clk 0:01:56]} 23. f3 {[%clk 0:01:35]}  Bc8 {[%clk 0:01:47]} 24. Kf2 {[%clk 0:01:08]}  Qc7 {[%clk 0:01:45]} 25. Kf1 {[%clk 0:01:01]}  Qb6 {[%clk 0:01:43]} 26. Qd2 {[%clk 0:00:58]}  Qxb2 {[%clk 0:01:31]} 27. Rb1 {[%clk 0:00:53]}  Qa3 {[%clk 0:01:31]} 28. Nb3 {[%clk 0:00:46]}  Nxb3 {[%clk 0:01:19]} 29. cxb3 {[%clk 0:00:43]}  d5 {[%clk 0:01:15]} 30. exd5 {[%clk 0:00:41]}  Rxe2 {[%clk 0:01:14]} 31. Nxe2 {[%clk 0:00:41]}  Nxd5 {[%clk 0:01:13]} 32. Qb2+ {[%clk 0:00:33]}  Qxb2 {[%clk 0:01:08]} 33. Rxb2 {[%clk 0:00:34]}  Ne3+ {[%clk 0:01:09]} 34. Kf2 {[%clk 0:00:31]}  Nd1+ {[%clk 0:01:09]} 0-1


[Site "https://www.chess.com"]

[Event "Titled Tuesday Blitz August 15 Early 2023"]
[White "Hirneise, Jens"]
[Black "Principe, Alexander"]
[WhiteFideId "24614734"]
[BlackFideId "3804542"]
[WhiteElo "2506"]
[BlackElo "2567"]
[Result "0-1"]
[Round "3"]
[TimeControl "180+1"]
[Date "2023.08.15"]
[WhiteClock "0:00:05"]
[BlackClock "0:00:09"]
[Board "138"]

1. b3 {[%clk 0:03:00]}  d5 {[%clk 0:02:59]} 2. Bb2 {[%clk 0:03:00]}  Bf5 {[%clk 0:02:58]} 3. d3 {[%clk 0:02:59]}  Nd7 {[%clk 0:02:58]} 4. Nd2 {[%clk 0:02:59]}  Ngf6 {[%clk 0:02:58]} 5. g3 {[%clk 0:02:56]}  e5 {[%clk 0:02:59]} 6. Bg2 {[%clk 0:02:55]}  c6 {[%clk 0:02:59]} 7. e4 {[%clk 0:02:55]}  Be6 {[%clk 0:02:59]} 8. Ngf3 {[%clk 0:02:54]}  Bd6 {[%clk 0:02:58]} 9. O-O {[%clk 0:02:52]}  O-O {[%clk 0:02:58]} 10. Ng5 {[%clk 0:02:51]}  Bg4 {[%clk 0:02:54]} 11. Qe1 {[%clk 0:02:43]}  h6 {[%clk 0:02:51]} 12. Ngf3 {[%clk 0:02:42]}  Re8 {[%clk 0:02:47]} 13. h3 {[%clk 0:02:40]}  Bh5 {[%clk 0:02:47]} 14. g4 {[%clk 0:02:34]}  Bg6 {[%clk 0:02:47]} 15. Nh4 {[%clk 0:02:32]}  Nxe4 {[%clk 0:02:37]} 16. Nxe4 {[%clk 0:02:25]}  Bxe4 {[%clk 0:02:23]} 17. dxe4 {[%clk 0:02:25]}  Qxh4 {[%clk 0:02:23]} 18. exd5 {[%clk 0:02:26]}  c5 {[%clk 0:02:18]} 19. Qe4 {[%clk 0:02:05]}  Nf6 {[%clk 0:02:16]} 20. Qe1 {[%clk 0:01:54]}  e4 {[%clk 0:01:55]} 21. f4 {[%clk 0:01:54]}  Qxe1 {[%clk 0:01:48]} 22. Raxe1 {[%clk 0:01:55]}  e3 {[%clk 0:01:15]} 23. Bxf6 {[%clk 0:01:45]}  gxf6 {[%clk 0:01:15]} 24. c4 {[%clk 0:01:40]}  Re7 {[%clk 0:00:59]} 25. Re2 {[%clk 0:01:32]}  Rae8 {[%clk 0:00:59]} 26. Kh2 {[%clk 0:01:29]}  Kg7 {[%clk 0:00:42]} 27. Kg3 {[%clk 0:01:29]}  f5 {[%clk 0:00:41]} 28. Bf3 {[%clk 0:01:18]}  Kf6 {[%clk 0:00:38]} 29. gxf5 {[%clk 0:00:56]}  Rg8+ {[%clk 0:00:35]} 30. Kh4 {[%clk 0:00:51]}  Bxf4 {[%clk 0:00:34]} 31. Bg4 {[%clk 0:00:48]}  Re4 {[%clk 0:00:27]} 32. Rxf4 {[%clk 0:00:37]}  Rxf4 {[%clk 0:00:28]} 33. Kg3 {[%clk 0:00:38]}  Rd4 {[%clk 0:00:18]} 34. Kf3 {[%clk 0:00:35]}  Re8 {[%clk 0:00:13]} 35. Rxe3 {[%clk 0:00:29]}  Rxe3+ {[%clk 0:00:12]} 36. Kxe3 {[%clk 0:00:30]}  Ke5 {[%clk 0:00:13]} 37. Bh5 {[%clk 0:00:22]}  f6 {[%clk 0:00:13]} 38. Bg4 {[%clk 0:00:22]}  b6 {[%clk 0:00:12]} 39. Ke2 {[%clk 0:00:20]}  Kf4 {[%clk 0:00:12]} 40. a3 {[%clk 0:00:17]}  Kg5 {[%clk 0:00:12]} 41. Ke3 {[%clk 0:00:15]}  h5 {[%clk 0:00:12]} 42. Bf3 {[%clk 0:00:14]}  h4 {[%clk 0:00:11]} 43. Bg4 {[%clk 0:00:12]}  Kh6 {[%clk 0:00:09]} 44. Ke2 {[%clk 0:00:12]}  Kg7 {[%clk 0:00:09]} 45. Ke3 {[%clk 0:00:12]}  Kf7 {[%clk 0:00:10]} 46. Ke2 {[%clk 0:00:11]}  Ke7 {[%clk 0:00:10]} 47. a4 {[%clk 0:00:10]}  a6 {[%clk 0:00:09]} 48. Ke3 {[%clk 0:00:10]}  Kd6 {[%clk 0:00:10]} 49. Be2 {[%clk 0:00:09]}  Ke5 {[%clk 0:00:09]} 50. Bd3 {[%clk 0:00:08]}  Rf4 {[%clk 0:00:09]} 51. d6 {[%clk 0:00:07]}  Rd4 {[%clk 0:00:09]} 52. Be4 {[%clk 0:00:07]}  Rxe4+ {[%clk 0:00:08]} 53. Kf3 {[%clk 0:00:05]}  Rd4 {[%clk 0:00:09]} 0-1


[Site "https://www.chess.com"]

[Event "Titled Tuesday Blitz August 15 Early 2023"]
[White "Aggelis, Nikolaos"]
[Black "Rian, Kapriaga"]
[WhiteFideId "4213220"]
[BlackFideId "7103263"]
[WhiteElo "2564"]
[BlackElo "2341"]
[Result "1-0"]
[Round "3"]
[TimeControl "180+1"]
[Date "2023.08.15"]
[WhiteClock "0:00:32"]
[BlackClock "0:00:00"]
[Board "139"]

1. c4 {[%clk 0:03:00]}  Nf6 {[%clk 0:02:56]} 2. g3 {[%clk 0:03:00]}  e5 {[%clk 0:02:55]} 3. Bg2 {[%clk 0:03:00]}  Nc6 {[%clk 0:02:55]} 4. Nc3 {[%clk 0:02:59]}  Bb4 {[%clk 0:02:54]} 5. Nd5 {[%clk 0:02:57]}  Bc5 {[%clk 0:02:52]} 6. e3 {[%clk 0:02:57]}  d6 {[%clk 0:02:51]} 7. Ne2 {[%clk 0:02:57]}  O-O {[%clk 0:02:50]} 8. O-O {[%clk 0:02:56]}  Nxd5 {[%clk 0:02:49]} 9. cxd5 {[%clk 0:02:55]}  Ne7 {[%clk 0:02:47]} 10. d4 {[%clk 0:02:53]}  Bb6 {[%clk 0:02:38]} 11. dxe5 {[%clk 0:02:50]}  dxe5 {[%clk 0:02:37]} 12. b4 {[%clk 0:02:37]}  a5 {[%clk 0:02:33]} 13. Bb2 {[%clk 0:02:32]}  f6 {[%clk 0:02:27]} 14. Qb3 {[%clk 0:02:16]}  Kh8 {[%clk 0:02:24]} 15. bxa5 {[%clk 0:02:07]}  Rxa5 {[%clk 0:02:22]} 16. Rfd1 {[%clk 0:02:06]}  Bg4 {[%clk 0:02:21]} 17. f3 {[%clk 0:01:56]}  Bf5 {[%clk 0:02:14]} 18. Kh1 {[%clk 0:01:48]}  Nc8 {[%clk 0:02:12]} 19. e4 {[%clk 0:01:47]}  Bd7 {[%clk 0:02:09]} 20. a4 {[%clk 0:01:42]}  Nd6 {[%clk 0:02:08]} 21. Bc3 {[%clk 0:01:42]}  Ra6 {[%clk 0:02:02]} 22. a5 {[%clk 0:01:41]}  Bf2 {[%clk 0:01:48]} 23. Bb4 {[%clk 0:01:39]}  Bc8 {[%clk 0:01:39]} 24. Rf1 {[%clk 0:01:32]}  Ba7 {[%clk 0:01:34]} 25. Rfc1 {[%clk 0:01:32]}  f5 {[%clk 0:01:25]} 26. Nc3 {[%clk 0:01:23]}  fxe4 {[%clk 0:01:22]} 27. Nxe4 {[%clk 0:01:21]}  Nxe4 {[%clk 0:01:20]} 28. fxe4 {[%clk 0:01:21]}  Rf2 {[%clk 0:01:15]} 29. Qc4 {[%clk 0:01:03]}  c5 {[%clk 0:00:53]} 30. Bxc5 {[%clk 0:00:57]}  Bxc5 {[%clk 0:00:30]} 31. Qxc5 {[%clk 0:00:58]}  Rf8 {[%clk 0:00:30]} 32. Rf1 {[%clk 0:00:53]}  Raf6 {[%clk 0:00:28]} 33. Rxf6 {[%clk 0:00:52]}  Rxf6 {[%clk 0:00:25]} 34. Rc1 {[%clk 0:00:41]}  Bg4 {[%clk 0:00:22]} 35. h3 {[%clk 0:00:40]}  Bf3 {[%clk 0:00:16]} 36. Qc8 {[%clk 0:00:39]}  Bxg2+ {[%clk 0:00:15]} 37. Kxg2 {[%clk 0:00:38]}  Rf8 {[%clk 0:00:15]} 38. Qxd8 {[%clk 0:00:38]}  Rxd8 {[%clk 0:00:15]} 39. Rc7 {[%clk 0:00:34]}  Rb8 {[%clk 0:00:14]} 40. d6 {[%clk 0:00:32]}  Kg8 {[%clk 0:00:13]} 41. d7 {[%clk 0:00:32]}  Kf7 {[%clk 0:00:00]} 42. d8=Q+ {[%clk 0:00:32]} 1-0


[Site "https://www.chess.com"]

[Event "Titled Tuesday Blitz August 15 Early 2023"]
[White "Thecourseoisildur"]
[Black "Kiselev, Pavel"]
[BlackFideId "4191102"]
[WhiteElo "2550"]
[BlackElo "2316"]
[Result "1-0"]
[Round "3"]
[TimeControl "180+1"]
[Date "2023.08.15"]
[WhiteClock "0:01:50"]
[BlackClock "0:02:13"]
[Board "145"]

1. d4 {[%clk 0:03:00]}  Nf6 {[%clk 0:02:59]} 2. c4 {[%clk 0:02:58]}  e6 {[%clk 0:02:59]} 3. Nf3 {[%clk 0:02:59]}  d5 {[%clk 0:02:59]} 4. g3 {[%clk 0:02:58]}  Ne4 {[%clk 0:02:59]} 5. Bg2 {[%clk 0:02:56]}  c6 {[%clk 0:02:59]} 6. O-O {[%clk 0:02:52]}  f5 {[%clk 0:03:00]} 7. b3 {[%clk 0:02:52]}  Bd6 {[%clk 0:02:59]} 8. Ba3 {[%clk 0:02:52]}  Qe7 {[%clk 0:02:57]} 9. Bxd6 {[%clk 0:02:49]}  Qxd6 {[%clk 0:02:58]} 10. Qc2 {[%clk 0:02:46]}  O-O {[%clk 0:02:58]} 11. Nc3 {[%clk 0:02:44]}  Nd7 {[%clk 0:02:57]} 12. e3 {[%clk 0:02:42]}  Ndf6 {[%clk 0:02:57]} 13. Ne2 {[%clk 0:02:35]}  Bd7 {[%clk 0:02:55]} 14. Ne5 {[%clk 0:02:33]}  Be8 {[%clk 0:02:53]} 15. Nf4 {[%clk 0:02:30]}  g5 {[%clk 0:02:50]} 16. Nfd3 {[%clk 0:02:25]}  Bh5 {[%clk 0:02:48]} 17. f3 {[%clk 0:02:24]}  f4 {[%clk 0:02:28]} 18. fxe4 {[%clk 0:02:20]}  dxe4 {[%clk 0:02:25]} 19. Nf2 {[%clk 0:02:18]}  f3 {[%clk 0:02:24]} 20. Bh1 {[%clk 0:02:13]}  Nd7 {[%clk 0:02:19]} 21. Nxe4 {[%clk 0:02:08]}  Qc7 {[%clk 0:02:19]} 22. Nxd7 {[%clk 0:02:01]}  Qxd7 {[%clk 0:02:20]} 23. Nxg5 {[%clk 0:02:01]}  Bg6 {[%clk 0:02:20]} 24. Qd2 {[%clk 0:01:57]}  e5 {[%clk 0:02:20]} 25. Nxf3 {[%clk 0:01:55]}  exd4 {[%clk 0:02:19]} 26. exd4 {[%clk 0:01:56]}  Qh3 {[%clk 0:02:17]} 27. Bg2 {[%clk 0:01:51]}  Qd7 {[%clk 0:02:13]} 28. Ne5 {[%clk 0:01:50]} 1-0


[Site "https://www.chess.com"]

[Event "Titled Tuesday Blitz August 15 Early 2023"]
[White "Preobrazhenska_D2011"]
[Black "Mogirzan, Matei-Valeriu"]
[BlackFideId "1257455"]
[WhiteElo "2308"]
[BlackElo "2542"]
[Result "0-1"]
[Round "3"]
[TimeControl "180+1"]
[Date "2023.08.15"]
[WhiteClock "0:00:15"]
[BlackClock "0:01:21"]
[Board "148"]

1. e4 {[%clk 0:02:55]}  e5 {[%clk 0:02:58]} 2. Nf3 {[%clk 0:02:55]}  Nf6 {[%clk 0:02:59]} 3. Nxe5 {[%clk 0:02:42]}  Nc6 {[%clk 0:02:58]} 4. Nxc6 {[%clk 0:02:30]}  dxc6 {[%clk 0:02:59]} 5. d3 {[%clk 0:02:14]}  Bc5 {[%clk 0:02:59]} 6. Be2 {[%clk 0:02:11]}  h5 {[%clk 0:02:58]} 7. c3 {[%clk 0:02:06]}  Ng4 {[%clk 0:02:57]} 8. d4 {[%clk 0:01:49]}  Qh4 {[%clk 0:02:55]} 9. g3 {[%clk 0:01:43]}  Qf6 {[%clk 0:02:54]} 10. f3 {[%clk 0:01:39]}  h4 {[%clk 0:02:54]} 11. dxc5 {[%clk 0:01:14]}  hxg3 {[%clk 0:02:48]} 12. fxg4 {[%clk 0:00:58]}  Rxh2 {[%clk 0:02:37]} 13. Rf1 {[%clk 0:00:49]}  Qh4 {[%clk 0:01:51]} 14. Kd2 {[%clk 0:00:47]}  Bxg4 {[%clk 0:01:49]} 15. Qb3 {[%clk 0:00:21]}  O-O-O+ {[%clk 0:01:40]} 16. Ke3 {[%clk 0:00:16]}  Rxe2+ {[%clk 0:01:38]} 17. Kf4 {[%clk 0:00:16]}  Be6+ {[%clk 0:01:22]} 18. Kf3 {[%clk 0:00:15]}  Qg4# {[%clk 0:01:21]} 0-1


[Site "https://www.chess.com"]

[Event "Titled Tuesday Blitz August 15 Early 2023"]
[White "Akhmetov, Ayan"]
[Black "Huynh, Lam Binh Nguyen"]
[WhiteFideId "13703706"]
[BlackFideId "12401633"]
[WhiteElo "2542"]
[BlackElo "2297"]
[Result "1-0"]
[Round "3"]
[TimeControl "180+1"]
[Date "2023.08.15"]
[WhiteClock "0:00:16"]
[BlackClock "0:00:07"]
[Board "149"]

1. Nf3 {[%clk 0:02:57]}  e6 {[%clk 0:02:54]} 2. c4 {[%clk 0:02:56]}  d5 {[%clk 0:02:46]} 3. g3 {[%clk 0:02:57]}  c6 {[%clk 0:02:45]} 4. Bg2 {[%clk 0:02:57]}  f5 {[%clk 0:02:43]} 5. O-O {[%clk 0:02:55]}  Nf6 {[%clk 0:02:43]} 6. d3 {[%clk 0:02:55]}  Bd6 {[%clk 0:02:36]} 7. Nbd2 {[%clk 0:02:54]}  O-O {[%clk 0:02:36]} 8. b3 {[%clk 0:02:17]}  e5 {[%clk 0:02:34]} 9. e4 {[%clk 0:02:07]}  fxe4 {[%clk 0:02:32]} 10. dxe4 {[%clk 0:02:08]}  d4 {[%clk 0:02:32]} 11. Ne1 {[%clk 0:02:02]}  Bg4 {[%clk 0:02:18]} 12. f3 {[%clk 0:02:00]}  Bh5 {[%clk 0:02:18]} 13. Nd3 {[%clk 0:02:01]}  Nbd7 {[%clk 0:02:17]} 14. b4 {[%clk 0:01:55]}  a5 {[%clk 0:02:16]} 15. c5 {[%clk 0:01:35]}  Be7 {[%clk 0:02:15]} 16. Nc4 {[%clk 0:01:33]}  axb4 {[%clk 0:02:07]} 17. Ncxe5 {[%clk 0:01:32]}  Nxe5 {[%clk 0:02:00]} 18. Nxe5 {[%clk 0:01:33]}  Bxc5 {[%clk 0:02:01]} 19. Nd3 {[%clk 0:01:25]}  Bb6 {[%clk 0:01:51]} 20. Qb3+ {[%clk 0:01:16]}  Bf7 {[%clk 0:01:45]} 21. Qxb4 {[%clk 0:01:12]}  Nd7 {[%clk 0:01:00]} 22. Bh3 {[%clk 0:00:55]}  Nf6 {[%clk 0:00:30]} 23. Rb1 {[%clk 0:00:47]}  Ba7 {[%clk 0:00:20]} 24. Bf4 {[%clk 0:00:39]}  b6 {[%clk 0:00:18]} 25. Ne5 {[%clk 0:00:34]}  c5 {[%clk 0:00:17]} 26. Qb5 {[%clk 0:00:30]}  Be8 {[%clk 0:00:17]} 27. Qc4+ {[%clk 0:00:28]}  Kh8 {[%clk 0:00:17]} 28. Rb2 {[%clk 0:00:20]}  b5 {[%clk 0:00:17]} 29. Rxb5 {[%clk 0:00:18]}  Bxb5 {[%clk 0:00:17]} 30. Qxb5 {[%clk 0:00:19]}  Rb8 {[%clk 0:00:16]} 31. Qc4 {[%clk 0:00:18]}  Qa5 {[%clk 0:00:15]} 32. Nf7+ {[%clk 0:00:17]}  Rxf7 {[%clk 0:00:14]} 33. Qxf7 {[%clk 0:00:18]}  d3 {[%clk 0:00:13]} 34. Bxb8 {[%clk 0:00:17]}  c4+ {[%clk 0:00:07]} 35. Bxa7 {[%clk 0:00:16]} 1-0


[Site "https://www.chess.com"]